fUSD/lending_fUSD_20241101
["ID","MTS","AMOUNT","RATE_DAILY","PERIOD"]
[341125755,1730426475352,-1000.0,0.00045334,13]
[341125756,1730426475373,-1000.0,0.00045334,13]
[341125757,1730426475393,-1000.0,0.00045334,13]
[341125758,1730426475415,-1000.0,0.00045334,13]
[341125759,1730426475434,-1000.0,0.00045334,13]
[341125760,1730426475458,-1000.0,0.00045334,13]
[341125761,1730426475478,-1000.0,0.00045334,13]
[341125762,1730426475499,-1000.0,0.00045334,13]
[341125763,1730426475518,-1000.0,0.00045334,13]
[341125764,1730426475538,-1000.0,0.00045334,13]
[341125765,1730426475558,-1000.0,0.00045334,13]
[341125766,1730426475580,-1000.0,0.00045334,13]
[341125767,1730426475601,-1000.0,0.00045334,13]
[341125768,1730426475622,-1000.0,0.00045334,13]
[341125769,1730426475643,-1000.0,0.00045334,13]
[341125770,1730426475663,-1000.0,0.00045334,13]
[341125771,1730426475683,-536.71,0.00045389,120]
[341125772,1730426475705,-675.9508,0.00045397,20]
[341125773,1730426475727,-927.63,0.00045415,2]
[341125774,1730426475748,-350.32,0.00045456,2]
[341125775,1730426475770,-2653.87,0.00045532,2]
[341125776,1730426475791,-2482.7812,0.00045538,7]
[341125777,1730426475814,-465.73,0.00045714,2]
[341125778,1730426475837,-159.393,0.00045714,2]
[341125779,1730426475858,-159.393,0.00045714,2]
[341125780,1730426475879,-159.393,0.00045714,2]
[341125781,1730426475899,-159.393,0.00045714,2]
[341125782,1730426475919,-159.393,0.00045714,2]
[341125783,1730426475941,-159.393,0.00045714,2]
[341125784,1730426475963,-159.393,0.00045714,2]
[341125785,1730426475984,-159.393,0.00045714,2]
[341125786,1730426476010,-159.393,0.00045714,2]
[341125787,1730426476031,-159.393,0.00045714,2]
[341125788,1730426476052,-1132.91,0.00045827,2]
[341125789,1730426476075,-657.93,0.00045865,2]
[341125790,1730426476097,-292.11,0.00045907,2]
[341125791,1730426476119,-166.64,0.00045925,120]
[341125792,1730426476209,-363.47,0.00045944,2]
[341125793,1730426476233,-162.06,0.00046006,120]
[341125794,1730426476255,-150.0,0.00046166,2]
[341125795,1730426476278,-576.47,0.00046263,2]
[341125796,1730426476303,-2324.05,0.00046263,2]
[341125797,1730426476337,-341.35030639,0.00046335,2]
[341125798,1730426476361,-251.0535,0.00046353,14]
[341125799,1730426476386,-500.0,0.00046459,120]
[341125800,1730426476408,-187.76619209,0.00046459,120]
[341125801,1730426476431,-500.0,0.00046459,120]
[341125802,1730426476452,-286.72553459,0.00046459,120]
[341125803,1730426476474,-21802.57348765,0.0004646,2]
[341125804,1730426476496,-932.27,0.0004657,2]
[341125805,1730426476516,-162.3,0.00046612,2]
[341125806,1730426476538,-363.47,0.00046659,2]
[341125807,1730426476559,-341.35030639,0.00046782,2]
[341125808,1730426476583,-154.0785,0.00046799,14]
[341125809,1730426476603,-150.0,0.00046849,2]
[341125810,1730426476624,-150.0,0.00046849,2]
[341125811,1730426476645,-313.33,0.00046849,2]
[341125812,1730426476670,-150.0,0.00046849,2]
[341125813,1730426476690,-2172.43704337,0.00046861,3]
[341125814,1730426476712,-495.7101,0.00046862,2]
[341125815,1730426476733,-2378.9934,0.00046862,2]
[341125816,1730426476755,-1410.81523459,0.00046892,15]
[341125817,1730426476779,-12023.7135383,0.00046929,2]
[341125818,1730426476799,-2000.0,0.00046929,7]
[341125819,1730426476820,-200.0,0.00046929,7]
[341125820,1730426476850,-2813.04905798,0.00046941,2]
[341125821,1730426476872,-197460.63555782,0.00046943,2]
[341125822,1730426535476,183.96,0.00019178,2]
[341125823,1730426546296,-150.0,0.00041387,2]
[341125824,1730426546319,-153.0,0.00041491,31]
[341125825,1730426546341,-153.0,0.00041491,31]
[341125826,1730426546367,-153.0,0.00041491,31]
[341125827,1730426546389,-107.04,0.00041491,31]
[341125828,1730426735483,3000.0,0.00044829,20]
[341125829,1730426747231,3000.0,0.00044829,23]
[341125830,1730426892998,151.54614559,0.00017605,2]
[341125831,1730426945155,-226.0,0.000299,2]
[341125832,1730426945174,-510.397,0.0004137,120]
[341125833,1730426945196,-153.0,0.00041422,31]
[341125834,1730426945215,-153.0,0.00041422,31]
[341125835,1730426945234,-153.0,0.00041422,31]
[341125836,1730426945253,-153.0,0.00041422,31]
[341125837,1730426945275,-153.0,0.0004144,31]
[341125838,1730426945295,-153.0,0.0004144,31]
[341125839,1730426945317,-153.0,0.0004144,31]
[341125840,1730426945340,-153.0,0.0004144,31]
[341125846,1730427031867,-592.13,0.00044632,2]
[341125847,1730427031877,-102.9,0.00045,90]
[341125848,1730427032068,-6950.0,0.00045,90]
[341125849,1730427032096,-320.88971033,0.00045,90]
[341125850,1730427032266,-2626.21028967,0.00045,90]
[341125851,1730427032276,-6696.0,0.00045,2]
[341125852,1730427032286,-1000.0,0.00045334,13]
[341125853,1730427032295,-1000.0,0.00045334,13]
[341125854,1730427032305,-1000.0,0.00045334,13]
[341125855,1730427032315,-1000.0,0.00045334,13]
[341125856,1730427032324,-1000.0,0.00045334,13]
[341125858,1730427032334,-1004.0,0.00045334,13]
[341125860,1730427032343,-957.0,0.00045334,13]
[341125862,1730427032353,-181.73,0.00045525,2]
[341125864,1730427032362,-250.0,0.00046205,120]
[341125866,1730427032371,-200.0,0.00046228,2]
[341125868,1730427032381,-181.73,0.00046257,2]
[341125870,1730427032391,-461.18,0.00046269,2]
[341125871,1730427032400,-23900.0,0.00046275,2]
[341125873,1730427032409,-150.0,0.00046292,2]
[341125876,1730427032419,-150.0,0.0004631,7]
[341125877,1730427032428,-250.0,0.00046667,120]
[341125879,1730427032437,-157.0,0.00046672,2]
[341125881,1730427032447,-566.45,0.00046724,2]
[341125884,1730427032460,-181.15,0.00046796,2]
[341125885,1730427032469,-592.13,0.00046896,2]
[341125887,1730427032479,-21184.26429143,0.00046943,2]
[341125890,1730427032490,-404.92261432,0.00046943,2]
[341125892,1730427032502,-1038.831207,0.00046943,2]
[341125894,1730427032516,-653.18224521,0.00046943,2]
[341125896,1730427032527,-1401.21512047,0.00046943,2]
[341125900,1730427033535,-267.28329624,0.00046943,2]
[341125902,1730427037785,-166.64,0.00043934,120]
[341125903,1730427037795,-178.365,0.00046672,2]
[341125906,1730427037990,-5555.74901956,0.00046943,2]
[341125907,1730427038002,-69338.49553036,0.00046943,2]
[341125908,1730427038015,-267.77262727,0.00046943,2]
[341125909,1730427038026,-1989.47898931,0.00046943,2]
[341125910,1730427038181,-200.0,0.00046724,2]
[341125911,1730427038192,-1181.97708913,0.00046943,2]
[341125912,1730427038204,-300.0,0.00046943,2]
[341125913,1730427038365,-160685.0106625,0.00046943,2]
[341125914,1730427038375,-200.0,0.00046943,7]
[341125915,1730427038386,-200.0,0.00046943,7]
[341125916,1730427038395,-783.4385241,0.00046944,2]
[341125917,1730427038405,-979.86396449,0.00046948,2]
[341125918,1730427038414,-979.86396449,0.00046948,2]
[341125919,1730427038423,-349.68448003,0.00046948,2]
[341125920,1730427038432,-783.4385241,0.00046961,2]
[341125921,1730427038442,-1748.53620038,0.00046963,2]
[341125922,1730427038451,-1748.53620038,0.00046978,2]
[341125923,1730427038460,-538.82,0.0004698,2]
[341125924,1730427038472,-349.68448003,0.00046981,2]
[341125925,1730427038482,-2813.04905798,0.00046983,2]
[341125926,1730427038491,-181.73,0.00046988,2]
[341125927,1730427038500,-1748.53620038,0.0004699,2]
[341125928,1730427038510,-1789.92618904,0.00047,30]
[341125929,1730427038523,-150.0,0.00047,2]
[341125930,1730427038533,-5000.0,0.00047,120]
[341125931,1730427038543,-5000.0,0.00047,120]
[341125932,1730427038551,-720.65,0.00047102,2]
[341125933,1730427038561,-152.0,0.00047119,2]
[341125935,1730427038570,-1088.0,0.00047119,2]
[341125937,1730427038579,-186.22,0.00047193,2]
[341125939,1730427038588,-2172.43704337,0.00047233,3]
[341125941,1730427038598,-832.082,0.00047334,2]
[341125943,1730427038607,-1369.045,0.00047334,2]
[341125944,1730427038616,-812.0,0.00047334,2]
[341125946,1730427038625,-187.8254,0.00047337,2]
[341125948,1730427038635,-282.154,0.00047348,14]
[341125949,1730427038645,-309.87930157,0.00047398,7]
[341125950,1730427038654,-200.0,0.00047398,7]
[341125951,1730427038663,-5500.82776745,0.000474,120]
[341125952,1730427038673,-348.85,0.00047427,10]
[341125953,1730427038682,-464.49,0.00047427,30]
[341125954,1730427038691,-170.0,0.00047437,2]
[341125955,1730427038701,-114563.0,0.00047437,30]
[341125956,1730427038710,-372.13757969,0.00047473,10]
[341125957,1730427038719,-165.61,0.00047487,120]
[341125958,1730427038728,-155.0,0.0004749,58]
[341125959,1730427038737,-887.53,0.00047572,2]
[341125960,1730427038746,-168.42,0.0004759,2]
[341125961,1730427038755,-929.41750657,0.00047674,2]
[341125962,1730427038768,-200.0,0.000477,17]
[341125963,1730427038777,-181.73,0.0004772,2]
[341125964,1730427038786,-500.0,0.000478,17]
[341125965,1730427038795,-200.0,0.00047872,7]
[341125966,1730427038804,-1269.73371114,0.00047884,15]
[341125967,1730427038813,-1000.0,0.000479,2]
[341125968,1730427038822,-800.0,0.000479,17]
[341125969,1730427038832,-504.55039453,0.00047973,10]
[341125970,1730427038841,-17200.79107457,0.00047982,7]
[341125971,1730427038850,-500.0,0.00047984,120]
[341125972,1730427038859,-503.129984,0.00047984,120]
[341125973,1730427038868,-500.0,0.00047984,120]
[341125974,1730427038877,-200.0,0.00047984,120]
[341125975,1730427038887,-2330.037,0.00047994,2]
[341125976,1730427038896,-1000.0,0.00048,120]
[341125977,1730427038905,-335.37853184,0.00048,120]
[341125978,1730427038914,-2251.04527315,0.00048,5]
[341125979,1730427038923,-1307.2613,0.00048,2]
[341125981,1730427038932,-1113.0,0.00048,2]
[341125983,1730427038942,-1000.0,0.00048,2]
[341125984,1730427038951,-500.0,0.00048073,5]
[341125985,1730427038961,-1864.32614,0.0004808,22]
[341125986,1730427038970,-167.64,0.00048085,2]
[341125987,1730427038979,-270.17447,0.00048088,30]
[341125988,1730427038989,-162.11,0.00048091,2]
[341125989,1730427038998,-2850.39726725,0.00048094,30]
[341125990,1730427039008,-157.110106,0.00048098,120]
[341125991,1730427039018,-500.0,0.000481,2]
[341125992,1730427039027,-35212.2576,0.000481,2]
[341125993,1730427039036,-1000.0,0.000481,22]
[341125994,1730427039045,-1000.0,0.0004812,22]
[341125995,1730427039055,-1000.0,0.0004814,22]
[341125996,1730427039064,-1000.0,0.0004816,22]
[341125997,1730427039073,-1000.0,0.0004818,22]
[341125998,1730427039082,-443.27791567,0.00048188,28]
[341125999,1730427039091,-157.110106,0.00048198,120]
[341126000,1730427039100,-7500.0,0.00048198,120]
[341126001,1730427039110,-57273.4314,0.00048199,2]
[341126002,1730427039119,-1000.0,0.000482,22]
[341126003,1730427039128,-1000.0,0.0004822,22]
[341126004,1730427039137,-1000.0,0.0004824,22]
[341126005,1730427039146,-1330.709844,0.0004824,22]
[341126006,1730427039155,-1000.0,0.0004826,22]
[341126007,1730427039165,-1000.0,0.0004826,22]
[341126008,1730427039175,-1000.0,0.0004828,22]
[341126009,1730427039184,-1000.0,0.0004828,22]
[341126010,1730427039196,-270.17447,0.00048288,30]
[341126011,1730427039205,-156.11011,0.00048298,120]
[341126012,1730427039215,-150.0,0.000483,120]
[341126013,1730427039224,-214.5416,0.000483,2]
[341126014,1730427039233,-172.45195229,0.000483,31]
[341126015,1730427039242,-318.322397,0.000483,74]
[341126016,1730427039251,-1000.0,0.000483,22]
[341126017,1730427039261,-1000.0,0.000483,22]
[341126018,1730427039271,-217.15303257,0.000483,20]
[341126019,1730427039280,-5000.0,0.000483,2]
[341126020,1730427039289,-5050.0,0.000483,9]
[341126021,1730427039299,-500.0,0.00048373,10]
[341126022,1730427039308,-205.47,0.0004838,120]
[341126023,1730427039317,-162.94,0.0004839,2]
[341126024,1730427039325,-283.11437282,0.0004839,2]
[341126025,1730427039334,-283.11437282,0.0004839,2]
[341126026,1730427039343,-209.1630306,0.00048392,7]
[341126027,1730427039352,-500.0,0.00048395,120]
[341126028,1730427039460,-209.1580126,0.00048395,120]
[341126029,1730427039472,-157.110106,0.00048398,120]
[341126030,1730427039482,-1089.3683458,0.00048398,2]
[341126031,1730427039491,-400.0,0.00048399,10]
[341126032,1730427039501,-400.0,0.00048399,10]
[341126033,1730427039511,-400.0,0.00048399,10]
[341126034,1730427039524,-400.0,0.00048399,10]
[341126035,1730427039533,-1199.80193816,0.00048399,120]
[341126036,1730427039542,-500.0,0.00048399,2]
[341126037,1730427039554,-1000.0,0.00048399,120]
[341126038,1730427039563,-2226.45247107,0.00048399,120]
[341126039,1730427039573,-500.0,0.00048399,120]
[341126040,1730427039582,-1975.31,0.00048399,120]
[341126041,1730427039591,-898.58482597,0.00048399,120]
[341126042,1730427039600,-1079.0,0.000484,7]
[341126043,1730427039610,-251.79921229,0.000484,18]
[341126044,1730427039620,-239721.37138706,0.000484,3]
[341126045,1730427039847,-1065.31408236,0.000484,3]
[341126047,1730427039860,-696.81,0.000484,3]
[341126049,1730427039871,-437.83923354,0.000484,3]
[341126051,1730427039894,-22.0509905,0.000484,3]
[341126052,1730427040054,-200.0,0.00046944,2]
[341126053,1730427040064,-6734.19999998,0.000484,3]
[341126054,1730427040076,-83416.12850151,0.000484,3]
[341126055,1730427040087,-6229.6909448,0.000484,3]
[341126056,1730427040098,-94373.47867028,0.000484,3]
[341126057,1730427040109,-281.321542,0.000484,3]
[341126058,1730427040320,-36369.22941818,0.000484,3]
[341126059,1730427040332,-3467.9,0.000484,3]
[341126068,1730427045444,-500.0,0.00046167,2]
[341126069,1730427045454,-200.0,0.00047,30]
[341126070,1730427045465,-290.71,0.00047427,10]
[341126071,1730427045476,-753.92,0.0004839,30]
[341126072,1730427045487,-748.80203129,0.000484,3]
[341126073,1730427045500,-3450.8,0.000484,3]
[341126074,1730427045514,-1026.84924479,0.000484,3]
[341126075,1730427045534,-6990.6723192,0.000484,3]
[341126076,1730427045546,-874.49641866,0.000484,3]
[341126077,1730427045560,-6415.21350918,0.000484,3]
[341126078,1730427045595,-3451.5,0.000484,3]
[341126083,1730427045626,-4638.28788178,0.000484,3]
[341126085,1730427045638,-647.50405101,0.000484,3]
[341126086,1730427045652,-8026.14679642,0.000484,3]
[341126089,1730427045779,-200.0,0.00047102,2]
[341126090,1730427045790,-1017.02465865,0.000484,3]
[341126091,1730427045802,-681.28204236,0.000484,3]
[341126092,1730427045813,-138115.43600614,0.000484,3]
[341126094,1730427045850,-831.0,0.000484,3]
[341126096,1730427045863,-2076.38,0.000484,3]
[341126099,1730427046030,-200.0,0.00047119,2]
[341126100,1730427046040,-3076.60483373,0.000484,3]
[341126101,1730427046053,-69342.02538373,0.000484,3]
[341126102,1730427046065,-57905.08014,0.000484,3]
[341126103,1730427046077,-138751.99999993,0.000484,3]
[341126104,1730427046090,-22120.43847018,0.000484,3]
[341126105,1730427046102,-673.34904482,0.000484,3]
[341126106,1730427046115,-253.25501592,0.000484,3]
[341126107,1730427046128,-1730.25,0.000484,3]
[341126108,1730427046224,-469.39512035,0.000484,3]
[341126110,1730427046236,-690.0,0.000484,3]
[341126113,1730427102508,153.0,0.00040488,2]
[341126114,1730427102737,153.0,0.00040488,2]
[341126115,1730427102916,153.0,0.00040488,2]
[341126117,1730427177726,157.03,0.00015342,2]
[341126119,1730427671859,156.4,0.00015342,2]
[341126120,1730427901322,270.0,0.00019725,2]
[341126121,1730427908435,156142.61391429,0.00016,2]
[341126123,1730427920754,162.32370944,0.00044832,120]
[341126124,1730427928147,300.07499806,0.00044832,30]
[341126125,1730427955142,-703.0,0.000306,2]
[341126126,1730427955163,-178.44575,0.00034039,2]
[341126127,1730427955182,-214.3815,0.00034039,2]
[341126128,1730427955202,-186.07725,0.00034163,2]
[341126129,1730427955222,-5334.6183386,0.00035552,2]
[341126130,1730427955241,-246.8,0.00035552,2]
[341126131,1730427955261,-623.0,0.00035615,2]
[341126132,1730427955280,-356.12,0.00035616,2]
[341126133,1730427955302,-153.0,0.00035616,2]
[341126134,1730427955324,-153.0,0.00035616,2]
[341126135,1730427955344,-153.0,0.00035616,2]
[341126136,1730427955365,-153.0,0.00035616,2]
[341126137,1730427955386,-153.0,0.00035616,2]
[341126138,1730427955406,-153.0,0.00035616,2]
[341126139,1730427955426,-153.0,0.00035616,2]
[341126140,1730427955446,-153.0,0.00035616,2]
[341126141,1730427955466,-153.0,0.00035616,2]
[341126142,1730427955486,-153.0,0.00035616,2]
[341126143,1730427955505,-500.0,0.00037567,2]
[341126144,1730427955525,-251.9663311,0.00037567,5]
[341126145,1730427955545,-156.4,0.00039671,2]
[341126146,1730427955565,-13087.18300861,0.0004,2]
[341126147,1730428018129,5835.47838327,0.000145,2]
[341126148,1730428031279,-2462.47455681,0.00037,120]
[341126149,1730428077688,273.06689269,0.00044832,120]
[341126150,1730428080139,6312.87398939,0.00044832,120]
[341126151,1730428085330,193163.79019022,0.00015,2]
[341126152,1730428100246,6116.66835584,0.0001439,2]
[341126153,1730428118875,449.63861706,0.00044832,30]
[341126157,1730428124401,229.18413359,0.00044832,120]
[341126160,1730428146104,-206.63186436,0.0002736,120]
[341126161,1730428146221,-26279.86635564,0.0003,15]
[341126162,1730428146259,-728.12809634,0.0003,15]
[341126163,1730428146281,-413.72182762,0.0003153,7]
[341126164,1730428146300,-1250.96289471,0.00032,30]
[341126165,1730428146320,-1560.78089852,0.00037,120]
[341126166,1730428146341,-2953.80163296,0.0004,2]
[341126167,1730428147091,-2981.641082,0.0004,2]
[341126168,1730428148108,-2983.11652883,0.0004,2]
[341126169,1730428148152,-31961.00073384,0.0004,2]
[341126170,1730428148175,-8553.24100616,0.0004,4]
[341126171,1730428148202,-3596.66676781,0.0004,4]
[341126172,1730428148223,-12561.09489809,0.0004,30]
[341126173,1730428148245,-224.0,0.00040488,2]
[341126174,1730428148268,-2225.79,0.00041115,2]
[341126175,1730428148295,-467.35,0.00041139,2]
[341126176,1730428148316,-1093.02,0.00041257,2]
[341126177,1730428148338,-367.45,0.00041257,2]
[341126178,1730428148361,-377.2,0.000413,10]
[341126179,1730428148383,-178.44575,0.0004131,14]
[341126180,1730428148404,-7680.71161441,0.00041503,2]
[341126181,1730428148426,-150.0,0.00041603,2]
[341126182,1730428148448,-500.0,0.00041946,31]
[341126183,1730428148470,-496.22081513,0.00041946,31]
[341126184,1730428148491,-2956.08,0.00041947,2]
[341126185,1730428148512,-1500.0,0.00042,5]
[341126186,1730428148543,-8873.68851796,0.00042,2]
[341126187,1730428148565,-1627.56095943,0.00042,120]
[341126188,1730428148587,-576.0,0.00042,2]
[341126189,1730428148610,-192638.08992006,0.00042,30]
[341126190,1730428148900,158.67,0.00015342,2]
[341126191,1730428159129,-5699.2008971,0.00042,30]
[341126192,1730428162218,-614.42,0.00042288,2]
[341126193,1730428168737,150.0,0.00041732,2]
[341126194,1730428180807,150.0,0.00041754,2]
[341126202,1730428211160,150.0,0.00041139,2]
[341126203,1730428229003,150.0,0.00041039,2]
[341126211,1730428232063,-162.13,0.00042374,120]
[341126212,1730428232071,-141.49,0.0004248,115]
[341126220,1730428232313,-35.39804685,0.0004248,115]
[341126221,1730428232323,-484.94439377,0.000428,60]
[341126222,1730428237151,-625.30751591,0.000428,60]
[341126223,1730428237338,-4874.48540716,0.000428,60]
[341126224,1730428237349,-5137.53426792,0.000428,60]
[341126225,1730428237360,-3450.0,0.000428,60]
[341126234,1730428238534,-1007.71132019,0.000428,60]
[341126236,1730428238547,-344.9,0.000428,60]
[341126239,1730428240011,-17604.50606499,0.000428,60]
[341126240,1730428240023,-197.97663082,0.000429,120]
[341126242,1730428240034,-238.66,0.00042942,2]
[341126243,1730428240044,-314.70341109,0.00043,120]
[341126244,1730428240054,-7680.71161438,0.00043118,2]
[341126245,1730428240065,-861.93,0.00043118,2]
[341126246,1730428240076,-200.0,0.00043436,2]
[341126247,1730428240087,-238.66,0.00043632,2]
[341126248,1730428240096,-200.0,0.00043716,2]
[341126249,1730428240106,-200.63167316,0.00043716,2]
[341126250,1730428240115,-695.73,0.0004375,2]
[341126251,1730428240125,-150.0,0.00044162,2]
[341126252,1730428240135,-368.95,0.00044306,2]
[341126253,1730428240145,-238.66,0.00044322,2]
[341126254,1730428240155,-150.0,0.00044423,7]
[341126255,1730428240168,-5129.20209576,0.0004444,2]
[341126256,1730428240180,-2420.125,0.0004444,2]
[341126257,1730428240191,-405.930668,0.0004444,2]
[341126258,1730428240203,-341.7267574,0.0004444,2]
[341126259,1730428240232,-15603.01547884,0.0004444,2]
[341126260,1730428240243,-614.42,0.00044552,2]
[341126261,1730428240253,-162.13,0.00044604,120]
[341126262,1730428240262,-7680.71161438,0.00044732,2]
[341126263,1730428240271,-218.29,0.00044822,10]
[341126264,1730428240280,-277.95,0.00044822,10]
[341126265,1730428240290,-9450.82350991,0.00044832,20]
[341126266,1730428240299,-604.96690091,0.00044832,2]
[341126267,1730428240309,-940.01382791,0.00044832,2]
[341126268,1730428240318,-10545.53581261,0.00044832,2]
[341126269,1730428240327,-32258.34231948,0.00044832,2]
[341126270,1730428240338,-150.49986895,0.00044832,2]
[341126271,1730428240348,-250.0,0.00044957,120]
[341126272,1730428240357,-223.47521213,0.00045,2]
[341126273,1730428240367,-1176.40223447,0.00045,2]
[341126274,1730428240376,-153.1568555,0.00045,120]
[341126275,1730428240385,-238.66,0.00045012,2]
[341126276,1730428240394,-350.0,0.000452,2]
[341126277,1730428240403,-159.82,0.00045437,120]
[341126278,1730428240413,-523.07928484,0.00045445,3]
[341126279,1730428240422,-2162.0,0.00045613,2]
[341126281,1730428240431,-631.05,0.00045614,2]
[341126283,1730428240442,-238.66,0.00045702,2]
[341126285,1730428240451,-500.0,0.00045776,10]
[341126287,1730428240461,-695.73,0.00045937,2]
[341126289,1730428240471,-945.0299,0.00046273,7]
[341126291,1730428240481,-289.26,0.00046318,76]
[341126293,1730428240491,-238.66,0.00046392,2]
[341126295,1730428240500,-14352.0,0.00046492,30]
[341126297,1730428240509,-1088.0,0.00046679,2]
[341126300,1730428240518,-501.91092641,0.000467,5]
[341126301,1730428240538,-614.42,0.00046816,2]
[341126302,1730428240547,-162.13,0.00046834,120]
[341126303,1730428240557,-523.07928485,0.00046862,3]
[341126304,1730428240566,-5037.57120565,0.0004698,2]
[341126305,1730428240576,-169.89,0.00046988,2]
[341126306,1730428240587,-171.0,0.00047,2]
[341126307,1730428240597,-11735.02157747,0.00047,30]
[341126308,1730428240610,-689.61,0.00047,30]
[341126309,1730428240621,-4528.30989039,0.00047,30]
[341126311,1730428240633,-23067.664566,0.00047,30]
[341126313,1730428240644,-340.2742,0.00047,30]
[341126316,1730428240656,-300.18854205,0.00047,30]
[341126318,1730428240667,-14485.0349866,0.00047,30]
[341126323,1730428240707,150.0,0.00041539,2]
[341126327,1730428242725,277.951,0.00034552,2]
[341126330,1730428242938,277.951,0.00041714,14]
[341126331,1730428243057,-367.29,0.00044532,2]
[341126333,1730428243067,-500.0,0.00046973,10]
[341126334,1730428243077,-64909.49877628,0.00047,30]
[341126335,1730428243088,-238.66,0.00047082,2]
[341126336,1730428243098,-165.629,0.0004719,3]
[341126337,1730428243108,-154.61,0.00047254,120]
[341126338,1730428243118,-157.0,0.00047264,2]
[341126339,1730428243129,-759.428,0.00047264,2]
[341126340,1730428243143,-220.9091779,0.00047273,19]
[341126341,1730428243153,-1000.0,0.00047336,8]
[341126342,1730428243163,-448.97504582,0.00047337,2]
[341126343,1730428243174,-115.03035418,0.00047337,2]
[341126344,1730428243185,-732.55411413,0.00047337,2]
[341126345,1730428243196,-11302.74386,0.00047337,2]
[341126347,1730428243475,-200.0,0.00046973,10]
[341126349,1730428243486,-2271.97600003,0.00047337,2]
[341126384,1730428246212,-200.0,0.00047273,19]
[341126385,1730428246222,-6694.0,0.00047337,2]
[341126386,1730428246235,-16783.41252584,0.00047337,2]
[341126387,1730428246245,-500.0,0.00047373,10]
[341126388,1730428246254,-939.0,0.00047449,30]
[341126389,1730428246264,-155.59,0.00047526,120]
[341126390,1730428246274,-238.66,0.00047772,2]
[341126391,1730428246284,-831.4181,0.00047815,2]
[341126392,1730428246293,-500.0,0.00047815,2]
[341126393,1730428246303,-60146.83923418,0.0004782,2]
[341126398,1730428269060,150.0,0.00041228,2]
[341126399,1730428289399,150.0,0.0004131,2]
[341126402,1730428301000,150.0,0.00041817,2]
[341126403,1730428302468,153.0,0.00035616,2]
[341126404,1730428332202,150.0,0.00041199,2]
[341126405,1730428375599,150.0,0.00017605,2]
[341126409,1730428692092,157.15,0.00015342,2]
[341126410,1730428720807,150.0,0.000205,3]
[341126411,1730428859966,550.0,0.00015,2]
[341126412,1730428861080,600.0,0.00017,2]
[341126413,1730428862150,650.0,0.00019,2]
[341126414,1730429133136,-700.0,0.00021,2]
[341126415,1730429133157,-750.0,0.00023,2]
[341126416,1730429133179,-800.0,0.00025,2]
[341126417,1730429133199,-467.86177446,0.0002985,2]
[341126418,1730429145546,-241.51170454,0.0002985,2]
[341126419,1730429145567,-246.02752357,0.0003,14]
[341126420,1730429179328,159.44,0.00015342,2]
[341126421,1730429237102,-9379.9754627,0.0003,14]
[341126422,1730429237122,-633.0,0.000306,2]
[341126423,1730429237142,-833.38,0.000306,2]
[341126424,1730429237163,-157.15,0.0003272,2]
[341126425,1730429237183,-154.72575,0.00035282,2]
[341126426,1730429237202,-201.231,0.00035282,2]
[341126427,1730429237221,-10969.49506557,0.00035282,2]
[341126428,1730429245097,-15440.39662934,0.00035282,2]
[341126429,1730429245118,-908.0,0.00036762,2]
[341126430,1730429245139,-376.208,0.00036763,46]
[341126431,1730429245158,-150.99,0.00036763,2]